[Event "Titled Tuesday Blitz March 21 Late 2023"]
[White "Thomforde-Toates, Noah"]
[Black "Chigaev, Maksim"]
[WhiteFideId "30951992"]
[BlackFideId "4108116"]
[WhiteElo "2607"]
[BlackElo "2547"]
[Result "0-1"]
[Round "05"]
[TimeControl "180+2"]
[Date "2023.03.21"]
[WhiteClock "0:00:06"]
[BlackClock "0:00:07"]

1. c4 {[%clk 0:03:00]}  Nf6 {[%clk 0:02:56]} 2. Nc3 {[%clk 0:03:01]}  e5 {[%clk 0:02:53]} 3. g3 {[%clk 0:03:00]}  Bb4 {[%clk 0:02:52]} 4. Bg2 {[%clk 0:02:59]}  Bxc3 {[%clk 0:02:48]} 5. bxc3 {[%clk 0:02:59]}  O-O {[%clk 0:02:48]} 6. d4 {[%clk 0:02:58]}  d6 {[%clk 0:02:45]} 7. Nf3 {[%clk 0:02:56]}  Nc6 {[%clk 0:02:43]} 8. O-O {[%clk 0:02:56]}  Re8 {[%clk 0:02:43]} 9. Rb1 {[%clk 0:02:52]}  h6 {[%clk 0:02:39]} 10. Ba3 {[%clk 0:02:44]}  Rb8 {[%clk 0:02:31]} 11. c5 {[%clk 0:02:36]}  e4 {[%clk 0:02:19]} 12. Nd2 {[%clk 0:02:31]}  d5 {[%clk 0:02:20]} 13. e3 {[%clk 0:02:28]}  Bf5 {[%clk 0:02:15]} 14. c4 {[%clk 0:02:24]}  Qd7 {[%clk 0:02:12]} 15. cxd5 {[%clk 0:02:00]}  Nxd5 {[%clk 0:02:11]} 16. Qc2 {[%clk 0:02:00]}  Bh3 {[%clk 0:01:46]} 17. Bxe4 {[%clk 0:01:47]}  Bxf1 {[%clk 0:01:28]} 18. Rxf1 {[%clk 0:01:48]}  Rbd8 {[%clk 0:01:25]} 19. Rb1 {[%clk 0:01:47]}  b6 {[%clk 0:01:01]} 20. cxb6 {[%clk 0:01:44]}  axb6 {[%clk 0:01:00]} 21. Bf5 {[%clk 0:01:43]}  Nxe3 {[%clk 0:00:47]} 22. fxe3 {[%clk 0:01:37]}  Nxd4 {[%clk 0:00:37]} 23. Bxd7 {[%clk 0:01:33]}  Nxc2 {[%clk 0:00:37]} 24. Bxe8 {[%clk 0:01:32]}  Rxe8 {[%clk 0:00:12]} 25. Rb3 {[%clk 0:01:30]}  Nxe3 {[%clk 0:00:11]} 26. Rd3 {[%clk 0:01:27]}  c5 {[%clk 0:00:08]} 27. Bb2 {[%clk 0:01:24]}  Nf5 {[%clk 0:00:07]} 28. Rd5 {[%clk 0:01:14]}  Ne3 {[%clk 0:00:08]} 29. Rd7 {[%clk 0:01:13]}  Nd1 {[%clk 0:00:05]} 30. Nc4 {[%clk 0:00:52]}  Nxb2 {[%clk 0:00:05]} 31. Nxb2 {[%clk 0:00:52]}  Re2 {[%clk 0:00:06]} 32. Nc4 {[%clk 0:00:51]}  b5 {[%clk 0:00:06]} 33. Nd6 {[%clk 0:00:51]}  b4 {[%clk 0:00:06]} 34. Rc7 {[%clk 0:00:51]}  Rxa2 {[%clk 0:00:06]} 35. Rc8+ {[%clk 0:00:49]}  Kh7 {[%clk 0:00:06]} 36. Rxc5 {[%clk 0:00:49]}  b3 {[%clk 0:00:07]} 37. Nc4 {[%clk 0:00:47]}  Rc2 {[%clk 0:00:06]} 38. Rb5 {[%clk 0:00:43]}  Rxc4 {[%clk 0:00:06]} 39. Rxb3 {[%clk 0:00:44]}  Rc2 {[%clk 0:00:07]} 40. Rf3 {[%clk 0:00:43]}  f6 {[%clk 0:00:07]} 41. Rb3 {[%clk 0:00:40]}  h5 {[%clk 0:00:08]} 42. Rb5 {[%clk 0:00:40]}  Kh6 {[%clk 0:00:08]} 43. Rd5 {[%clk 0:00:38]}  g5 {[%clk 0:00:08]} 44. Rb5 {[%clk 0:00:37]}  Kg6 {[%clk 0:00:09]} 45. Kh1 {[%clk 0:00:35]}  Re2 {[%clk 0:00:09]} 46. Kg1 {[%clk 0:00:35]}  Re5 {[%clk 0:00:10]} 47. Rb8 {[%clk 0:00:34]}  Kf5 {[%clk 0:00:10]} 48. Rb4 {[%clk 0:00:34]}  Re4 {[%clk 0:00:10]} 49. Rb2 {[%clk 0:00:33]}  h4 {[%clk 0:00:09]} 50. Kg2 {[%clk 0:00:33]}  hxg3 {[%clk 0:00:07]} 51. hxg3 {[%clk 0:00:33]}  Kg4 {[%clk 0:00:08]} 52. Rc2 {[%clk 0:00:32]}  f5 {[%clk 0:00:08]} 53. Rb2 {[%clk 0:00:32]}  Rd4 {[%clk 0:00:08]} 54. Rc2 {[%clk 0:00:32]}  Ra4 {[%clk 0:00:09]} 55. Rb2 {[%clk 0:00:32]}  Re4 {[%clk 0:00:09]} 56. Ra2 {[%clk 0:00:32]}  Re3 {[%clk 0:00:09]} 57. Ra4+ {[%clk 0:00:31]}  Re4 {[%clk 0:00:10]} 58. Ra2 {[%clk 0:00:29]}  Kh5 {[%clk 0:00:10]} 59. Rf2 {[%clk 0:00:26]}  Re5 {[%clk 0:00:09]} 60. Ra2 {[%clk 0:00:25]}  Kg6 {[%clk 0:00:08]} 61. Kf3 {[%clk 0:00:24]}  Re6 {[%clk 0:00:08]} 62. Ra5 {[%clk 0:00:23]}  Rb6 {[%clk 0:00:09]} 63. Ra3 {[%clk 0:00:23]}  Rb5 {[%clk 0:00:07]} 64. Ra6+ {[%clk 0:00:20]}  Kh5 {[%clk 0:00:08]} 65. Ra3 {[%clk 0:00:20]}  Re5 {[%clk 0:00:08]} 66. Ra8 {[%clk 0:00:19]}  Rc5 {[%clk 0:00:07]} 67. Rh8+ {[%clk 0:00:19]}  Kg6 {[%clk 0:00:07]} 68. Rg8+ {[%clk 0:00:19]}  Kf6 {[%clk 0:00:08]} 69. Rf8+ {[%clk 0:00:19]}  Ke5 {[%clk 0:00:09]} 70. Re8+ {[%clk 0:00:19]}  Kd4 {[%clk 0:00:09]} 71. Rg8 {[%clk 0:00:19]}  Rc3+ {[%clk 0:00:05]} 72. Kf2 {[%clk 0:00:20]}  g4 {[%clk 0:00:05]} 73. Rd8+ {[%clk 0:00:19]}  Ke5 {[%clk 0:00:05]} 74. Re8+ {[%clk 0:00:20]}  Kf6 {[%clk 0:00:06]} 75. Rf8+ {[%clk 0:00:20]}  Kg6 {[%clk 0:00:07]} 76. Rg8+ {[%clk 0:00:19]}  Kf7 {[%clk 0:00:07]} 77. Ra8 {[%clk 0:00:20]}  Rc2+ {[%clk 0:00:06]} 78. Ke3 {[%clk 0:00:20]}  Rg2 {[%clk 0:00:06]} 79. Kf4 {[%clk 0:00:20]}  Rf2+ {[%clk 0:00:07]} 80. Kg5 {[%clk 0:00:19]}  Rf3 {[%clk 0:00:07]} 81. Ra7+ {[%clk 0:00:20]}  Ke6 {[%clk 0:00:08]} 82. Ra6+ {[%clk 0:00:20]}  Ke5 {[%clk 0:00:08]} 83. Ra5+ {[%clk 0:00:21]}  Ke4 {[%clk 0:00:09]} 84. Ra4+ {[%clk 0:00:20]}  Ke3 {[%clk 0:00:09]} 85. Rb4 {[%clk 0:00:14]}  Kf2 {[%clk 0:00:05]} 86. Kh4 {[%clk 0:00:12]}  Kg2 {[%clk 0:00:06]} 87. Rb2+ {[%clk 0:00:11]}  Rf2 {[%clk 0:00:06]} 88. Rb5 {[%clk 0:00:11]}  Kh2 {[%clk 0:00:05]} 89. Ra5 {[%clk 0:00:10]}  f4 {[%clk 0:00:05]} 90. Kxg4 {[%clk 0:00:09]}  fxg3 {[%clk 0:00:05]} 91. Rh5+ {[%clk 0:00:09]}  Kg2 {[%clk 0:00:05]} 92. Ra5 {[%clk 0:00:07]}  Rb2 {[%clk 0:00:05]} 93. Ra1 {[%clk 0:00:07]}  Rb4+ {[%clk 0:00:05]} 94. Kf5 {[%clk 0:00:07]}  Kh2 {[%clk 0:00:06]} 95. Rc1 {[%clk 0:00:06]}  g2 {[%clk 0:00:06]} 96. Rc2 {[%clk 0:00:05]}  Kh1 {[%clk 0:00:07]} 97. Rc8 {[%clk 0:00:04]}  g1=Q {[%clk 0:00:07]} 98. Rh8+ {[%clk 0:00:05]}  Qh2 {[%clk 0:00:07]} 99. Rg8 {[%clk 0:00:06]} 0-1


[Site "https://www.chess.com"]

[Event "Titled Tuesday Blitz March 21 Late 2023"]
[White "Turayev, Shahruh"]
[Black "Baskakov, Egor"]
[WhiteFideId "14003856"]
[BlackFideId "24197866"]
[WhiteElo "2171"]
[BlackElo "2212"]
[Result "1-0"]
[Round "05"]
[TimeControl "180+2"]
[Date "2023.03.21"]
[WhiteClock "0:00:09"]
[BlackClock "0:00:03"]

1. e4 {[%clk 0:02:59]}  c5 {[%clk 0:02:59]} 2. Nc3 {[%clk 0:03:00]}  Nc6 {[%clk 0:02:54]} 3. Bb5 {[%clk 0:03:00]}  g6 {[%clk 0:02:52]} 4. Bxc6 {[%clk 0:03:00]}  dxc6 {[%clk 0:02:53]} 5. f4 {[%clk 0:03:00]}  Bg7 {[%clk 0:02:51]} 6. Nf3 {[%clk 0:03:00]}  Bg4 {[%clk 0:02:51]} 7. O-O {[%clk 0:02:55]}  e5 {[%clk 0:02:52]} 8. d3 {[%clk 0:02:53]}  exf4 {[%clk 0:02:52]} 9. Bxf4 {[%clk 0:02:51]}  Ne7 {[%clk 0:02:52]} 10. h3 {[%clk 0:02:49]}  Bxf3 {[%clk 0:02:51]} 11. Qxf3 {[%clk 0:02:50]}  O-O {[%clk 0:02:50]} 12. Qg3 {[%clk 0:02:44]}  Qd7 {[%clk 0:02:44]} 13. Bg5 {[%clk 0:02:31]}  f6 {[%clk 0:02:40]} 14. Be3 {[%clk 0:02:26]}  b6 {[%clk 0:02:41]} 15. Qh4 {[%clk 0:02:23]}  Rae8 {[%clk 0:02:38]} 16. Bh6 {[%clk 0:02:23]}  Qd4+ {[%clk 0:02:23]} 17. Kh1 {[%clk 0:02:22]}  Nf5 {[%clk 0:02:23]} 18. Rxf5 {[%clk 0:02:12]}  gxf5 {[%clk 0:02:21]} 19. Qg3 {[%clk 0:02:02]}  Rf7 {[%clk 0:02:19]} 20. exf5 {[%clk 0:01:39]}  Kh8 {[%clk 0:02:17]} 21. Bd2 {[%clk 0:01:31]}  Rg8 {[%clk 0:02:07]} 22. Qf3 {[%clk 0:01:28]}  Qh4 {[%clk 0:02:01]} 23. Ne4 {[%clk 0:01:18]}  Bh6 {[%clk 0:01:46]} 24. Bc3 {[%clk 0:01:16]}  Bg7 {[%clk 0:01:37]} 25. Rf1 {[%clk 0:01:13]}  Re7 {[%clk 0:01:16]} 26. Be1 {[%clk 0:00:49]}  Qh6 {[%clk 0:01:14]} 27. Bd2 {[%clk 0:00:49]}  Qh4 {[%clk 0:01:14]} 28. Kh2 {[%clk 0:00:40]}  Rxe4 {[%clk 0:01:02]} 29. Qxe4 {[%clk 0:00:34]}  Qxe4 {[%clk 0:00:59]} 30. dxe4 {[%clk 0:00:35]}  Re8 {[%clk 0:00:58]} 31. Re1 {[%clk 0:00:34]}  Rd8 {[%clk 0:00:52]} 32. Bc3 {[%clk 0:00:34]}  Kg8 {[%clk 0:00:44]} 33. g4 {[%clk 0:00:31]}  b5 {[%clk 0:00:43]} 34. a3 {[%clk 0:00:30]}  Kf7 {[%clk 0:00:39]} 35. Kg3 {[%clk 0:00:30]}  h5 {[%clk 0:00:33]} 36. Re2 {[%clk 0:00:29]}  Rh8 {[%clk 0:00:30]} 37. e5 {[%clk 0:00:27]}  fxe5 {[%clk 0:00:24]} 38. Bxe5 {[%clk 0:00:28]}  hxg4 {[%clk 0:00:21]} 39. hxg4 {[%clk 0:00:27]}  Rh1 {[%clk 0:00:21]} 40. Bxg7 {[%clk 0:00:27]}  Kxg7 {[%clk 0:00:22]} 41. Re7+ {[%clk 0:00:25]}  Kf6 {[%clk 0:00:21]} 42. Re6+ {[%clk 0:00:26]}  Kf7 {[%clk 0:00:21]} 43. Rxc6 {[%clk 0:00:26]}  Rb1 {[%clk 0:00:21]} 44. b3 {[%clk 0:00:25]}  b4 {[%clk 0:00:19]} 45. axb4 {[%clk 0:00:24]}  cxb4 {[%clk 0:00:19]} 46. Kf4 {[%clk 0:00:24]}  a5 {[%clk 0:00:18]} 47. Kg5 {[%clk 0:00:24]}  Rc1 {[%clk 0:00:17]} 48. Rc7+ {[%clk 0:00:24]}  Ke8 {[%clk 0:00:17]} 49. Kg6 {[%clk 0:00:24]}  a4 {[%clk 0:00:17]} 50. bxa4 {[%clk 0:00:14]}  b3 {[%clk 0:00:18]} 51. Rb7 {[%clk 0:00:11]}  bxc2 {[%clk 0:00:14]} 52. Rc7 {[%clk 0:00:11]}  Kd8 {[%clk 0:00:15]} 53. Rc4 {[%clk 0:00:10]}  Rg1 {[%clk 0:00:13]} 54. Rxc2 {[%clk 0:00:10]}  Rxg4+ {[%clk 0:00:13]} 55. Kf7 {[%clk 0:00:11]}  Rxa4 {[%clk 0:00:14]} 56. f6 {[%clk 0:00:11]}  Ra7+ {[%clk 0:00:11]} 57. Kg8 {[%clk 0:00:10]}  Ra1 {[%clk 0:00:11]} 58. f7 {[%clk 0:00:10]}  Rg1+ {[%clk 0:00:10]} 59. Kf8 {[%clk 0:00:11]}  Kd7 {[%clk 0:00:06]} 60. Rc4 {[%clk 0:00:11]}  Rf1 {[%clk 0:00:05]} 61. Rd4+ {[%clk 0:00:11]}  Ke6 {[%clk 0:00:05]} 62. Re4+ {[%clk 0:00:10]}  Kd5 {[%clk 0:00:05]} 63. Re2 {[%clk 0:00:09]}  Kd6 {[%clk 0:00:04]} 64. Ke8 {[%clk 0:00:09]}  Kd5 {[%clk 0:00:03]} 65. f8=Q {[%clk 0:00:09]}  Rxf8+ {[%clk 0:00:03]} 66. Kxf8 {[%clk 0:00:09]} 1-0


[Site "https://www.chess.com"]

[Event "Titled Tuesday Blitz March 21 Late 2023"]
[White "Ambartsumova, Karina"]
[Black "Ozen, Bahadir"]
[WhiteFideId "4166299"]
[BlackFideId "6337058"]
[WhiteElo "2300"]
[BlackElo "2503"]
[Result "1/2-1/2"]
[Round "05"]
[TimeControl "180+2"]
[Date "2023.03.21"]
[WhiteClock "0:00:04"]
[BlackClock "0:00:11"]

1. c4 {[%clk 0:02:53]}  e6 {[%clk 0:02:54]} 2. Nc3 {[%clk 0:02:53]}  d5 {[%clk 0:02:55]} 3. d4 {[%clk 0:02:51]}  c6 {[%clk 0:02:55]} 4. e3 {[%clk 0:02:47]}  Nf6 {[%clk 0:02:54]} 5. Nf3 {[%clk 0:02:47]}  Nbd7 {[%clk 0:02:54]} 6. b3 {[%clk 0:02:43]}  Bb4 {[%clk 0:02:47]} 7. Bd2 {[%clk 0:02:43]}  O-O {[%clk 0:02:43]} 8. Bd3 {[%clk 0:02:40]}  b6 {[%clk 0:02:30]} 9. O-O {[%clk 0:02:40]}  Bb7 {[%clk 0:02:30]} 10. Qe2 {[%clk 0:02:36]}  Qe7 {[%clk 0:02:19]} 11. Ne5 {[%clk 0:02:29]}  c5 {[%clk 0:02:05]} 12. f4 {[%clk 0:02:20]}  Rad8 {[%clk 0:01:52]} 13. a3 {[%clk 0:02:10]}  Ba5 {[%clk 0:01:38]} 14. Rfd1 {[%clk 0:01:39]}  a6 {[%clk 0:01:36]} 15. Be1 {[%clk 0:01:35]}  Bxc3 {[%clk 0:01:30]} 16. Bxc3 {[%clk 0:01:35]}  Ne4 {[%clk 0:01:30]} 17. Bxe4 {[%clk 0:01:19]}  dxe4 {[%clk 0:01:31]} 18. Nxd7 {[%clk 0:01:20]}  Rxd7 {[%clk 0:01:30]} 19. dxc5 {[%clk 0:01:20]}  bxc5 {[%clk 0:01:22]} 20. Rxd7 {[%clk 0:01:17]}  Qxd7 {[%clk 0:01:23]} 21. Rd1 {[%clk 0:01:18]}  Qe7 {[%clk 0:01:07]} 22. Qd2 {[%clk 0:01:16]}  f6 {[%clk 0:01:07]} 23. Qd6 {[%clk 0:00:48]}  Kf7 {[%clk 0:01:04]} 24. Qb6 {[%clk 0:00:45]}  Rc8 {[%clk 0:00:55]} 25. b4 {[%clk 0:00:42]}  Qc7 {[%clk 0:00:51]} 26. Qxc7+ {[%clk 0:00:36]}  Rxc7 {[%clk 0:00:51]} 27. bxc5 {[%clk 0:00:37]}  Ke7 {[%clk 0:00:37]} 28. Bb4 {[%clk 0:00:34]}  Bc6 {[%clk 0:00:37]} 29. Rd6 {[%clk 0:00:29]}  h6 {[%clk 0:00:37]} 30. Kf2 {[%clk 0:00:26]}  Rc8 {[%clk 0:00:37]} 31. Ke2 {[%clk 0:00:23]}  Rc7 {[%clk 0:00:36]} 32. Ba5 {[%clk 0:00:19]}  Rc8 {[%clk 0:00:36]} 33. Bb6 {[%clk 0:00:19]}  Bd7 {[%clk 0:00:28]} 34. Kd2 {[%clk 0:00:17]}  Bc6 {[%clk 0:00:25]} 35. Kc3 {[%clk 0:00:17]}  h5 {[%clk 0:00:24]} 36. g3 {[%clk 0:00:15]}  Bd7 {[%clk 0:00:16]} 37. Kb4 {[%clk 0:00:15]}  Bc6 {[%clk 0:00:17]} 38. Ka5 {[%clk 0:00:15]}  Bb7 {[%clk 0:00:17]} 39. Rd4 {[%clk 0:00:14]}  g6 {[%clk 0:00:15]} 40. Ba7 {[%clk 0:00:10]}  Rc6 {[%clk 0:00:12]} 41. Kb4 {[%clk 0:00:08]}  Rc8 {[%clk 0:00:11]} 42. Ka5 {[%clk 0:00:07]}  Rc6 {[%clk 0:00:11]} 43. Kb4 {[%clk 0:00:04]}  Rc8 {[%clk 0:00:11]} 44. Ka5 {[%clk 0:00:04]} 1/2-1/2


[Site "https://www.chess.com"]

[Event "Titled Tuesday Blitz March 21 Late 2023"]
[White "Drori, Saar"]
[Black "Kobo, Ori"]
[WhiteFideId "2812444"]
[BlackFideId "2812320"]
[WhiteElo "2322"]
[BlackElo "2447"]
[Result "0-1"]
[Round "05"]
[TimeControl "180+2"]
[Date "2023.03.21"]
[WhiteClock "0:00:06"]
[BlackClock "0:00:03"]

1. e4 {[%clk 0:02:58]}  c5 {[%clk 0:02:59]} 2. Nc3 {[%clk 0:02:56]}  Nc6 {[%clk 0:02:59]} 3. g3 {[%clk 0:02:56]}  g6 {[%clk 0:02:56]} 4. Bg2 {[%clk 0:02:56]}  Bg7 {[%clk 0:02:56]} 5. d3 {[%clk 0:02:56]}  d6 {[%clk 0:02:56]} 6. Be3 {[%clk 0:02:56]}  h5 {[%clk 0:02:56]} 7. h3 {[%clk 0:02:56]}  Rb8 {[%clk 0:02:55]} 8. Nge2 {[%clk 0:02:54]}  b5 {[%clk 0:02:54]} 9. Qd2 {[%clk 0:02:54]}  b4 {[%clk 0:02:54]} 10. Nd1 {[%clk 0:02:55]}  Nd4 {[%clk 0:02:45]} 11. O-O {[%clk 0:02:53]}  h4 {[%clk 0:02:36]} 12. g4 {[%clk 0:02:47]}  e5 {[%clk 0:02:22]} 13. Bxd4 {[%clk 0:02:35]}  cxd4 {[%clk 0:02:19]} 14. f4 {[%clk 0:02:33]}  exf4 {[%clk 0:02:12]} 15. Nxf4 {[%clk 0:02:30]}  Be5 {[%clk 0:01:55]} 16. a3 {[%clk 0:02:22]}  b3 {[%clk 0:01:32]} 17. c3 {[%clk 0:02:10]}  Ne7 {[%clk 0:01:27]} 18. Ne2 {[%clk 0:02:07]}  dxc3 {[%clk 0:01:20]} 19. Ndxc3 {[%clk 0:02:06]}  O-O {[%clk 0:01:02]} 20. d4 {[%clk 0:01:55]}  Bg7 {[%clk 0:01:01]} 21. Rad1 {[%clk 0:01:51]}  Ba6 {[%clk 0:01:01]} 22. Rf2 {[%clk 0:01:42]}  Nc6 {[%clk 0:00:57]} 23. e5 {[%clk 0:01:32]}  Na5 {[%clk 0:00:57]} 24. Nd5 {[%clk 0:01:21]}  dxe5 {[%clk 0:00:48]} 25. dxe5 {[%clk 0:01:11]}  Bxe5 {[%clk 0:00:37]} 26. Qe3 {[%clk 0:00:45]}  Re8 {[%clk 0:00:15]} 27. Qxa7 {[%clk 0:00:40]}  Bb7 {[%clk 0:00:16]} 28. Nf6+ {[%clk 0:00:39]}  Qxf6 {[%clk 0:00:08]} 29. Rxf6 {[%clk 0:00:39]}  Bxf6 {[%clk 0:00:08]} 30. Qxa5 {[%clk 0:00:37]}  Bxg2 {[%clk 0:00:08]} 31. Kxg2 {[%clk 0:00:38]}  Rxe2+ {[%clk 0:00:08]} 32. Kf3 {[%clk 0:00:33]}  Rbe8 {[%clk 0:00:08]} 33. Rd3 {[%clk 0:00:30]}  Rxb2 {[%clk 0:00:07]} 34. Qb5 {[%clk 0:00:24]}  Ree2 {[%clk 0:00:07]} 35. Rxb3 {[%clk 0:00:23]}  Rf2+ {[%clk 0:00:06]} 36. Ke4 {[%clk 0:00:21]}  Rbe2+ {[%clk 0:00:06]} 37. Re3 {[%clk 0:00:21]}  Rb2 {[%clk 0:00:04]} 38. Qe8+ {[%clk 0:00:19]}  Kg7 {[%clk 0:00:05]} 39. Qc6 {[%clk 0:00:13]}  g5 {[%clk 0:00:05]} 40. Rf3 {[%clk 0:00:12]}  Rbe2+ {[%clk 0:00:04]} 41. Re3 {[%clk 0:00:11]}  Rd2 {[%clk 0:00:05]} 42. Rd3 {[%clk 0:00:05]}  Rfe2+ {[%clk 0:00:03]} 43. Kf3 {[%clk 0:00:06]}  Rf2+ {[%clk 0:00:03]} 44. Ke3 {[%clk 0:00:06]}  Rde2# {[%clk 0:00:03]} 0-1


[Site "https://www.chess.com"]

[Event "Titled Tuesday Blitz March 21 Late 2023"]
[White "Domingo Nunez, Alejandro"]
[Black "Bartel, Mateusz"]
[WhiteFideId "22245561"]
[BlackFideId "1112635"]
[WhiteElo "2230"]
[BlackElo "2521"]
[Result "0-1"]
[Round "05"]
[TimeControl "180+2"]
[Date "2023.03.21"]
[WhiteClock "0:00:02"]
[BlackClock "0:00:19"]

1. Nf3 {[%clk 0:02:50]}  g6 {[%clk 0:02:56]} 2. g3 {[%clk 0:02:49]}  Bg7 {[%clk 0:02:56]} 3. d4 {[%clk 0:02:49]}  Nf6 {[%clk 0:02:51]} 4. Bg2 {[%clk 0:02:50]}  O-O {[%clk 0:02:52]} 5. O-O {[%clk 0:02:48]}  d6 {[%clk 0:02:50]} 6. c4 {[%clk 0:02:48]}  Nc6 {[%clk 0:02:50]} 7. b3 {[%clk 0:02:39]}  Ne4 {[%clk 0:02:46]} 8. Bb2 {[%clk 0:02:38]}  f5 {[%clk 0:02:46]} 9. Nc3 {[%clk 0:02:29]}  Nxc3 {[%clk 0:02:09]} 10. Bxc3 {[%clk 0:02:30]}  e5 {[%clk 0:02:09]} 11. dxe5 {[%clk 0:01:27]}  dxe5 {[%clk 0:02:08]} 12. Qd5+ {[%clk 0:01:16]}  Kh8 {[%clk 0:02:08]} 13. Qxd8 {[%clk 0:00:54]}  Rxd8 {[%clk 0:02:08]} 14. Ng5 {[%clk 0:00:54]}  Re8 {[%clk 0:02:06]} 15. Bd5 {[%clk 0:00:53]}  Nd8 {[%clk 0:02:00]} 16. Bb4 {[%clk 0:00:41]}  h6 {[%clk 0:01:36]} 17. Nf7+ {[%clk 0:00:39]}  Kh7 {[%clk 0:01:37]} 18. Rad1 {[%clk 0:00:38]}  Ne6 {[%clk 0:01:21]} 19. Bc3 {[%clk 0:00:37]}  Ng5 {[%clk 0:01:10]} 20. Nxg5+ {[%clk 0:00:12]}  hxg5 {[%clk 0:01:11]} 21. Bb4 {[%clk 0:00:11]}  c6 {[%clk 0:00:43]} 22. Bf7 {[%clk 0:00:11]}  Rh8 {[%clk 0:00:44]} 23. Rd2 {[%clk 0:00:08]}  Bf6 {[%clk 0:00:43]} 24. c5 {[%clk 0:00:07]}  Kg7 {[%clk 0:00:42]} 25. Bc4 {[%clk 0:00:08]}  f4 {[%clk 0:00:33]} 26. Rfd1 {[%clk 0:00:06]}  Bh3 {[%clk 0:00:32]} 27. f3 {[%clk 0:00:05]}  Rhe8 {[%clk 0:00:26]} 28. g4 {[%clk 0:00:05]}  e4 {[%clk 0:00:24]} 29. Rd7+ {[%clk 0:00:05]}  Re7 {[%clk 0:00:21]} 30. Bc3 {[%clk 0:00:02]}  Re8 {[%clk 0:00:19]} 0-1


[Site "https://www.chess.com"]

[Event "Titled Tuesday Blitz March 21 Late 2023"]
[White "Bolourchifard, Farzad"]
[Black "Mazurkiewicz, Michal"]
[WhiteFideId "12510084"]
[BlackFideId "1124943"]
[WhiteElo "2317"]
[BlackElo "2054"]
[Result "0-1"]
[Round "05"]
[TimeControl "180+2"]
[Date "2023.03.21"]
[WhiteClock "0:00:20"]
[BlackClock "0:00:54"]

1. e4 {[%clk 0:03:00]}  d6 {[%clk 0:02:55]} 2. Nc3 {[%clk 0:03:00]}  Nf6 {[%clk 0:02:55]} 3. d4 {[%clk 0:03:01]}  c6 {[%clk 0:02:56]} 4. Nf3 {[%clk 0:03:01]}  Bg4 {[%clk 0:02:55]} 5. h3 {[%clk 0:03:01]}  Bh5 {[%clk 0:02:56]} 6. Be2 {[%clk 0:02:54]}  e6 {[%clk 0:02:55]} 7. O-O {[%clk 0:02:55]}  d5 {[%clk 0:02:55]} 8. e5 {[%clk 0:02:53]}  Nfd7 {[%clk 0:02:55]} 9. a3 {[%clk 0:02:41]}  c5 {[%clk 0:02:54]} 10. dxc5 {[%clk 0:02:39]}  Bxc5 {[%clk 0:02:54]} 11. b4 {[%clk 0:02:40]}  Be7 {[%clk 0:02:54]} 12. Bb2 {[%clk 0:02:40]}  Nc6 {[%clk 0:02:54]} 13. g4 {[%clk 0:02:28]}  Bg6 {[%clk 0:02:54]} 14. Nb5 {[%clk 0:02:28]}  O-O {[%clk 0:02:51]} 15. Bd3 {[%clk 0:02:01]}  a6 {[%clk 0:02:47]} 16. Bxg6 {[%clk 0:02:01]}  hxg6 {[%clk 0:02:47]} 17. Nbd4 {[%clk 0:01:58]}  Rc8 {[%clk 0:02:41]} 18. Nxc6 {[%clk 0:01:51]}  Rxc6 {[%clk 0:02:42]} 19. Bd4 {[%clk 0:01:51]}  Qc8 {[%clk 0:02:32]} 20. c3 {[%clk 0:01:51]}  Bd8 {[%clk 0:02:33]} 21. h4 {[%clk 0:01:41]}  Bb6 {[%clk 0:02:31]} 22. Kg2 {[%clk 0:01:35]}  Bxd4 {[%clk 0:02:14]} 23. cxd4 {[%clk 0:01:35]}  Rc3 {[%clk 0:01:54]} 24. Rh1 {[%clk 0:01:27]}  f6 {[%clk 0:01:37]} 25. Rh3 {[%clk 0:00:36]}  fxe5 {[%clk 0:01:33]} 26. dxe5 {[%clk 0:00:37]}  Qc4 {[%clk 0:01:26]} 27. Rg3 {[%clk 0:00:35]}  Qe4 {[%clk 0:01:18]} 28. Rc1 {[%clk 0:00:34]}  Rcxf3 {[%clk 0:01:15]} 29. Rxf3 {[%clk 0:00:33]}  Nxe5 {[%clk 0:01:14]} 30. Rc3 {[%clk 0:00:27]}  Qxg4+ {[%clk 0:01:13]} 31. Kf1 {[%clk 0:00:26]}  Nxf3 {[%clk 0:01:09]} 32. Rc7 {[%clk 0:00:17]}  Nh2+ {[%clk 0:01:02]} 33. Ke1 {[%clk 0:00:17]}  Qg1+ {[%clk 0:01:02]} 34. Kd2 {[%clk 0:00:15]}  Rxf2+ {[%clk 0:01:03]} 35. Kc1 {[%clk 0:00:15]}  Rf1 {[%clk 0:01:02]} 36. Qxf1 {[%clk 0:00:16]}  Qxf1+ {[%clk 0:01:03]} 37. Kb2 {[%clk 0:00:17]}  Qf2+ {[%clk 0:01:01]} 38. Kb3 {[%clk 0:00:17]}  Qg3+ {[%clk 0:01:02]} 39. Ka4 {[%clk 0:00:17]}  Qxc7 {[%clk 0:01:02]} 40. h5 {[%clk 0:00:18]}  b5+ {[%clk 0:01:00]} 41. Kb3 {[%clk 0:00:18]}  Qc4+ {[%clk 0:01:00]} 42. Kb2 {[%clk 0:00:18]}  d4 {[%clk 0:00:57]} 43. hxg6 {[%clk 0:00:18]}  d3 {[%clk 0:00:57]} 44. a4 {[%clk 0:00:19]}  d2 {[%clk 0:00:57]} 45. a5 {[%clk 0:00:19]}  d1=Q {[%clk 0:00:55]} 46. Ka3 {[%clk 0:00:20]}  Qcb3# {[%clk 0:00:54]} 0-1


[Site "https://www.chess.com"]